fUSD/lending_fUSD_20260311
["ID","MTS","AMOUNT","RATE_DAILY","PERIOD"]
[408204549,1773232231817,-2413.61553984,0.000176,2]
[408204550,1773232231828,-3037.07724405,0.000176,2]
[408204551,1773232231839,-987.75961641,0.000176,2]
[408204552,1773232231850,-871.14161176,0.000176,2]
[408204553,1773232231861,-571.68055395,0.000176,2]
[408204554,1773232231872,-2642.63241699,0.000176,2]
[408204555,1773232231883,-40021.32637826,0.000176,2]
[408204556,1773232231892,-166.66,0.00017669,2]
[408204557,1773232231901,-500.0,0.00017891,2]
[408204558,1773232231911,-500.0,0.00017891,2]
[408204559,1773232231920,-500.0,0.00017891,2]
[408204560,1773232231930,-500.0,0.00017891,2]
[408204561,1773232231939,-500.0,0.00017891,2]
[408204562,1773232231948,-3410.75,0.00017891,2]
[408204563,1773232231958,-150.0,0.00017891,2]
[408204564,1773232231967,-3240.0,0.00017891,2]
[408204565,1773232231977,-500.0,0.00017891,2]
[408204566,1773232231987,-691.54353489,0.00017936,2]
[408204567,1773232231998,-341.348914,0.00017936,2]
[408204568,1773232232012,-166.66,0.00018033,2]
[408204569,1773232232021,-802.98994015,0.00018177,2]
[408204572,1773232237867,-1172.96774003,0.00018177,2]
[408204573,1773232237879,-873.39,0.00018177,2]
[408204574,1773232237891,-502.36887877,0.00018177,2]
[408204575,1773232237929,-1134.48351077,0.00018177,2]
[408204576,1773232237989,-1389.24993028,0.00018177,2]
[408204577,1773232237999,-703.43335972,0.00018206,2]
[408204578,1773232238011,-1296.56664028,0.00018206,2]
[408204579,1773232238021,-1101.8,0.00018249,2]
[408204580,1773232238031,-166.66,0.00018398,2]
[408204581,1773232238041,-3685.75296303,0.00018427,2]
[408204582,1773232238052,-2316.98550104,0.00018427,2]
[408204583,1773232238062,-6002.73846407,0.00018673,2]
[408204584,1773232238071,-1101.8,0.00018706,2]
[408204585,1773232238083,-200.0,0.00018741,2]
[408204586,1773232238093,-166.66,0.00018762,2]
[408204587,1773232238103,-422.05,0.00018786,2]
[408204588,1773232238113,-1545.77,0.0001884,2]
[408204589,1773232238122,-3069.3118653,0.000189,2]
[408204590,1773232238132,-6002.73846407,0.00018918,2]
[408204591,1773232238143,-166.66,0.00019126,2]
[408204592,1773232238152,-1101.8,0.00019162,2]
[408204593,1773232238163,-6002.73846407,0.00019164,2]
[408204594,1773232238172,-287.0,0.0001921,2]
[408204595,1773232238183,-500.56489866,0.00019233,2]
[408204596,1773232238193,-195.0,0.00019235,2]
[408204597,1773232238203,-250.0,0.0001925,2]
[408204598,1773232238212,-2500.0,0.0001925,2]
[408204599,1773232238222,-1680.0,0.00019305,2]
[408204600,1773232238235,-300.0,0.000194,7]
[408204601,1773232238245,-6002.73846407,0.00019409,2]
[408204602,1773232238254,-502.0,0.00019452,2]
[408204603,1773232238264,-500.0,0.00019499,2]
[408204604,1773232238274,-500.0,0.00019499,2]
[408204605,1773232238284,-490.0,0.00019499,2]
[408204606,1773232238293,-433.71565809,0.00019499,2]
[408204607,1773232238303,-493.46366306,0.00019499,2]
[408204608,1773232238312,-289.29,0.00019499,2]
[408204609,1773232238322,-19004.01631518,0.000195,2]
[408204659,1773232240147,-3002.0359229,0.000195,2]
[408204660,1773232240158,-10932.05006192,0.000195,2]
[408204661,1773232240167,-1000.0,0.000195,2]
[408204662,1773232240175,-700.0,0.000195,7]
[408204663,1773232240184,-1000.0,0.000196,7]
[408204664,1773232240194,-500.0,0.00019616,2]
[408204665,1773232240204,-1101.8,0.00019618,2]
[408204666,1773232240213,-6002.73846407,0.00019655,2]
[408204667,1773232240222,-500.0,0.00019671,2]
[408204668,1773232240231,-1400.0,0.000197,7]
[408204669,1773232240241,-500.0,0.00019726,2]
[408204670,1773232240250,-422.05,0.00019726,2]
[408204671,1773232240259,-500.0,0.0001978,2]
[408204672,1773232240268,-5177.73110671,0.00019797,2]
[408204673,1773232240277,-500.0,0.00019799,2]
[408204674,1773232240287,-500.0,0.00019799,2]
[408204675,1773232240296,-500.0,0.00019799,2]
[408204676,1773232240305,-500.0,0.00019799,2]
[408204677,1773232240315,-1700.0,0.000198,7]
[408204678,1773232240323,-500.0,0.00019835,2]
[408204679,1773232240332,-6099.14823969,0.0001987,2]
[408204680,1773232240342,-6099.14823961,0.00019873,2]
[408204681,1773232240351,-6099.14823961,0.00019877,2]
[408204682,1773232240360,-6099.14823961,0.0001988,2]
[408204683,1773232240369,-6099.14823961,0.00019883,2]
[408204684,1773232240379,-6099.14823961,0.00019887,2]
[408204685,1773232240388,-500.0,0.0001989,2]
[408204686,1773232240397,-6099.14823961,0.0001989,2]
[408204687,1773232240407,-6099.14823961,0.00019893,2]
[408204688,1773232240417,-6099.14823961,0.00019897,2]
[408204689,1773232240426,-617.9,0.00019899,2]
[408204690,1773232240435,-500.0,0.00019899,2]
[408204691,1773232240444,-500.0,0.00019899,2]
[408204692,1773232240453,-500.0,0.00019899,2]
[408204693,1773232240462,-500.0,0.00019899,2]
[408204694,1773232240472,-500.0,0.00019899,2]
[408204695,1773232240483,-506.63695301,0.00019899,2]
[408204696,1773232240492,-500.0,0.00019899,2]
[408204697,1773232240502,-500.0,0.00019899,2]
[408204698,1773232240512,-500.0,0.00019899,2]
[408204699,1773232240521,-500.0,0.00019899,2]
[408204700,1773232240532,-500.0,0.00019899,2]
[408204701,1773232240541,-500.0,0.00019899,2]
[408204702,1773232240732,-484.31397246,0.000199,2]
[408204703,1773232240741,-10000.0,0.000199,2]
[408204704,1773232240751,-6002.73846407,0.000199,2]
[408204705,1773232240763,-1634.42214221,0.000199,2]
[408204706,1773232240772,-300.0,0.000199,7]
[408204707,1773232240783,-229.78940629,0.000199,2]
[408204708,1773232240797,-5062.65259962,0.000199,2]
[408204709,1773232240806,-200.76634596,0.000199,2]
[408204710,1773232240816,-6099.14823961,0.000199,2]
[408204711,1773232240825,-296.98389022,0.000199,2]
[408204712,1773232240836,-197.70766094,0.000199,3]
[408204713,1773232240845,-5959.86526724,0.000199,2]
[408204714,1773232240854,-139103.2439977,0.00019944,2]
[408204715,1773232240863,-296.0,0.00019945,2]
[408204716,1773232240873,-20035.9157337,0.0001997,2]
[408204717,1773232240882,-15790.8039665,0.0001997,2]
[408204718,1773232240891,-2793.936921,0.0001997,2]
[408204719,1773232240902,-45370.3259124,0.0001997,2]
[408204720,1773232240911,-500.81396462,0.00019973,2]
[408204721,1773232240921,-500.0,0.00019973,2]
[408204722,1773232240930,-2393.0,0.00019973,2]
[408204723,1773232240939,-3664.0,0.00019973,2]
[408204724,1773232240947,-501.66559118,0.00019973,2]
[408204725,1773232240956,-5897.60753717,0.0001998,5]
[408204726,1773232240965,-163.04146088,0.0001999,2]
[408204727,1773232240975,-163.04146088,0.0001999,2]
[408204728,1773232240986,-163.04146088,0.0001999,2]
[408204729,1773232240995,-151.0,0.00019996,2]
[408204730,1773232241004,-151.0,0.00019997,2]
[408204731,1773232241013,-151.0,0.00019997,2]
[408204732,1773232241022,-300.0,0.00019999,2]
[408204733,1773232241031,-300.0,0.00019999,2]
[408204734,1773232241040,-666.0,0.00019999,2]
[408204735,1773232241049,-300.0,0.00019999,2]
[408204736,1773232241059,-1785.91,0.00019999,2]
[408204737,1773232241068,-1785.91,0.00019999,2]
[408204738,1773232241077,-1785.91,0.00019999,2]
[408204739,1773232241086,-1785.91,0.00019999,2]
[408204740,1773232241095,-1785.91,0.00019999,2]
[408204741,1773232241104,-1785.91,0.00019999,2]
[408204742,1773232241114,-1785.91,0.00019999,2]
[408204743,1773232241123,-1785.91,0.00019999,2]
[408204744,1773232241132,-1785.91,0.00019999,2]
[408204745,1773232241141,-1785.91,0.00019999,2]
[408204746,1773232241150,-1785.91,0.00019999,2]
[408204747,1773232241159,-1785.91,0.00019999,2]
[408204748,1773232241168,-1785.91,0.00019999,2]
[408204749,1773232241177,-1785.91,0.00019999,2]
[408204750,1773232241186,-1785.91,0.00019999,2]
[408204751,1773232241195,-1785.91,0.00019999,2]
[408204752,1773232241204,-1785.91,0.00019999,2]
[408204753,1773232241214,-1785.91,0.00019999,2]
[408204754,1773232241224,-1785.91,0.00019999,2]
[408204755,1773232241234,-1785.91,0.00019999,2]
[408204756,1773232241243,-1785.91,0.00019999,2]
[408204757,1773232241252,-1785.91,0.00019999,2]
[408204758,1773232241262,-1785.91,0.00019999,2]
[408204759,1773232241271,-1786.10974593,0.00019999,2]
[408204760,1773232241280,-500.0,0.00019999,2]
[408204761,1773232241288,-500.0,0.00019999,2]
[408204762,1773232241297,-500.0,0.00019999,2]
[408204763,1773232241306,-500.0,0.00019999,2]
[408204764,1773232241315,-500.0,0.00019999,2]
[408204765,1773232241324,-221.07,0.00019999,2]
[408204766,1773232241333,-350.0,0.00019999,2]
[408204767,1773232241342,-150.0,0.00019999,2]
[408204768,1773232241351,-500.0,0.00019999,2]
[408204769,1773232241360,-500.0,0.00019999,2]
[408204770,1773232241369,-500.0,0.00019999,2]
[408204771,1773232241379,-3016.14,0.00019999,2]
[408204772,1773232241388,-178.169,0.00019999,2]
[408204773,1773232241397,-500.0,0.00019999,2]
[408204774,1773232241407,-500.0,0.00019999,2]
[408204775,1773232241416,-500.0,0.00019999,2]
[408204776,1773232241425,-500.0,0.00019999,2]
[408204777,1773232241435,-500.0,0.00019999,2]
[408204778,1773232241444,-505.20001815,0.00019999,2]
[408204779,1773232241453,-204.07600257,0.00019999,5]
[408204780,1773232241462,-1212.18103635,0.00019999,5]
[408204781,1773232241471,-500.0,0.00019999,2]
[408204782,1773232241482,-1228.35243259,0.00019999,5]
[408204783,1773232241491,-500.0,0.00019999,2]
[408204784,1773232241501,-500.0,0.00019999,2]
[408204785,1773232241510,-3000.0,0.00019999,2]
[408204786,1773232241519,-374.76668695,0.00019999,2]
[408204787,1773232241529,-273.01158791,0.00019999,2]
[408204788,1773232241538,-500.0,0.00019999,2]
[408204789,1773232241547,-500.0,0.00019999,2]
[408204790,1773232241556,-161.8899585,0.00019999,2]
[408204791,1773232241566,-233.12754858,0.00019999,2]
[408204792,1773232241575,-1375648.78036651,0.0002,2]
[408204793,1773232241588,-3003.96290257,0.0002,2]
[408204810,1773232243425,-4976.42433161,0.0002,2]
[408204811,1773232243570,-20.01412122,0.0002,2]
[408204815,1773232245680,-405.14,0.0002,2]
[408204816,1773232245692,-1222.77525002,0.0002,2]
[408204817,1773232245703,-1141.75539225,0.0002,2]
[408204818,1773232245739,-1539.0,0.0002,2]
[408204819,1773232246011,-1112.93458247,0.000199,2]
[408204820,1773232246021,-10861.76701657,0.0002,2]
[408204821,1773232246032,-1498.2,0.0002,2]
[408204822,1773232287340,4324.02,0.00047464,120]
[408204823,1773232324373,8000.0,0.00047464,120]
[408204824,1773232324444,250.0,0.00047464,120]
[408204825,1773232324872,500.0,0.00047464,120]
[408204826,1773232324973,8000.0,0.00047464,120]
[408204827,1773232325017,1030.0,0.00047464,120]
[408204828,1773232325063,520.0,0.00047464,120]
[408204829,1773232325114,250.0,0.00047464,120]
[408204830,1773232325588,8000.0,0.00047464,120]
[408204831,1773232325968,250.0,0.00047464,120]
[408204832,1773232326385,250.0,0.00047464,120]
[408204833,1773232326434,8000.0,0.00047464,120]
[408204834,1773232326971,250.0,0.00047464,120]
[408204835,1773232327017,8000.0,0.00047464,120]
[408204836,1773232327541,1500.0,0.00047464,120]
[408204837,1773232327597,500.0,0.00047464,120]
[408204838,1773232327643,250.0,0.00047464,120]
[408204839,1773232328162,1500.0,0.00047464,120]
[408204840,1773232328206,250.0,0.00047464,120]
[408204841,1773232328254,500.0,0.00047464,120]
[408204842,1773232328771,1500.0,0.00047464,120]
[408204843,1773232328828,250.0,0.00047464,120]
[408204844,1773232328888,500.0,0.00047464,120]
[408204845,1773232329399,1500.0,0.00047464,120]
[408204846,1773232329445,250.0,0.00047464,120]
[408204847,1773232329499,500.0,0.00047464,120]
[408204848,1773232329634,250.0,0.00047464,120]
[408204849,1773232329679,1500.0,0.00047464,120]
[408204850,1773232330015,1500.0,0.00047464,120]
[408204851,1773232330074,250.0,0.00047464,120]
[408204852,1773232330123,500.0,0.00047464,120]
[408204853,1773232330229,250.0,0.00047464,120]
[408204854,1773232330304,1500.0,0.00047464,120]
[408204855,1773232330562,241.47935815,0.00047464,120]
[408204856,1773232330608,3000.0,0.00047464,120]
[408204857,1773232330652,1500.0,0.00047464,120]
[408204858,1773232330709,250.0,0.00047464,120]
[408204859,1773232330753,500.0,0.00047464,120]
[408204860,1773232330832,250.0,0.00047464,120]
[408204861,1773232331086,1500.0,0.00047464,120]
[408204862,1773232331307,1500.0,0.00047464,120]
[408204863,1773232331355,500.0,0.00047464,120]
[408204864,1773232331459,250.0,0.00047464,120]
[408204865,1773232331692,1500.0,0.00047464,120]
[408204866,1773232331737,3000.0,0.00047464,120]
[408204867,1773232331953,1500.0,0.00047464,120]
[408204868,1773232332014,500.0,0.00047464,120]
[408204869,1773232332082,250.0,0.00047464,120]
[408204870,1773232332287,1500.0,0.00047464,120]
[408204871,1773232332337,3000.0,0.00047464,120]
[408204872,1773232332676,500.0,0.00047464,120]
[408204873,1773232332769,250.0,0.00047464,120]
[408204874,1773232332903,1500.0,0.00047464,120]
[408204875,1773232332946,3000.0,0.00047464,120]
[408204876,1773232333085,1500.0,0.00047464,120]
[408204877,1773232333315,500.0,0.00047464,120]
[408204878,1773232333402,250.0,0.00047464,120]
[408204879,1773232333510,1500.0,0.00047464,120]
[408204880,1773232333560,3000.0,0.00047464,120]
[408204881,1773232333697,1500.0,0.00047464,120]
[408204882,1773232333957,500.0,0.00047464,120]
[408204883,1773232334122,1500.0,0.00047464,120]
[408204884,1773232334168,3000.0,0.00047464,120]
[408204885,1773232334343,1500.0,0.00047464,120]
[408204886,1773232334756,1500.0,0.00047464,120]
[408204887,1773232334806,3000.0,0.00047464,120]
[408204888,1773232334856,207.44998627,0.00047464,120]
[408204889,1773232335417,3000.0,0.00047464,120]
[408204890,1773232336021,3000.0,0.00047464,120]
[408204891,1773232336651,3000.0,0.00047464,120]
[408204892,1773232337006,9207.20483851,0.00047464,120]
[408204893,1773232337052,1500.0,0.00047464,120]
[408204894,1773232337618,1500.0,0.00047464,120]
[408204895,1773232337780,3000.0,0.00047464,120]
[408204896,1773232338702,1500.0,0.00047464,120]
[408204897,1773232339040,170.0,0.00047464,120]
[408204898,1773232339374,1500.0,0.00047464,120]
[408204899,1773232339663,170.0,0.00047464,120]
[408204900,1773232340202,1500.0,0.00047464,120]
[408204901,1773232340367,1500.0,0.00047464,120]
[408204902,1773232340592,1500.0,0.00047464,120]
[408204903,1773232340975,1500.0,0.00047464,120]
[408204904,1773232341226,1500.0,0.00047464,120]
[408204905,1773232341727,1500.0,0.00047464,120]
[408204906,1773232341878,500.0,0.00047464,120]
[408204907,1773232342202,1500.0,0.00047464,120]
[408204908,1773232342353,1500.0,0.00047464,120]
[408204909,1773232342826,1500.0,0.00047464,120]
[408204910,1773232342979,1500.0,0.00047464,120]
[408204911,1773232343408,1500.0,0.00047464,120]
[408204912,1773232344049,1500.0,0.00047464,120]
[408204913,1773232344653,1500.0,0.00047464,120]
[408204914,1773232345363,1500.0,0.00047464,120]
[408204915,1773232345474,1000.0,0.00047464,120]
[408204916,1773232345980,1500.0,0.00047464,120]
[408204917,1773232346105,1000.0,0.00047464,120]
[408204918,1773232346612,1500.0,0.00047464,120]
[408204919,1773232346754,1000.0,0.00047464,120]
[408204920,1773232347137,500.0,0.00047464,120]
[408204921,1773232347353,1000.0,0.00047464,120]
[408204922,1773232347969,1000.0,0.00047464,120]
[408204923,1773232348591,1000.0,0.00047464,120]
[408204924,1773232349197,1000.0,0.00047464,120]
[408204925,1773232349534,290.26104003,0.00047464,120]
[408204926,1773232349806,1000.0,0.00047464,120]
[408204927,1773232350249,205.33524266,0.00047464,120]
[408204928,1773232350434,1000.0,0.00047464,120]
[408204929,1773232351095,1000.0,0.00047464,120]
[408204930,1773232351862,1000.0,0.00047464,120]
[408204931,1773232353899,151.0,0.00047464,120]
[408204932,1773232354681,151.0,0.00047464,120]
[408204933,1773232355357,151.0,0.00047464,120]
[408204934,1773232355989,151.0,0.00047464,120]
[408204935,1773232386659,201.12765535,0.00047473,120]
[408204936,1773232389780,3224.75890656,0.00047473,120]
[408204937,1773232392324,702.42664319,0.00047473,120]
[408204938,1773232399315,398.38747117,0.00047473,120]
[408204939,1773232399414,264.86482545,0.00047473,120]
[408204942,1773232539487,50000.0,0.00047473,40]
[408204943,1773232644754,500.0,0.00047473,120]
[408204944,1773232718289,1239.62699437,0.00047473,30]
[408204945,1773232785803,167.51,9.446e-05,2]
[408204946,1773232785876,167.51,0.00010796,2]
[408204947,1773232786093,167.51,0.00012145,2]
[408204948,1773232786300,167.51,0.00013494,2]
[408204949,1773232786540,167.51,0.00014844,2]
[408204951,1773232827697,504.0,0.00047473,120]
[408204952,1773232840554,5000.01,0.00015,7]
[408204953,1773232840576,448.79647457,0.00015,7]
[408204954,1773232840596,595.59482517,0.00015,7]
[408204955,1773232840617,595.59482517,0.00015,7]
[408204956,1773232840638,595.59482517,0.00015,7]
[408204957,1773232840660,595.59482517,0.00015,7]
[408204958,1773232840681,595.59482517,0.00015,7]
[408204959,1773232840701,595.59482517,0.00015,7]
[408204960,1773232840726,595.59482517,0.00015,7]
[408204961,1773232849700,-1271.73,0.00015,7]
[408204962,1773232852771,-5000.01,0.00015,7]
[408204963,1773232855844,-5000.01,0.00015,7]
[408204964,1773232859007,-5000.01,0.00015,7]
[408204965,1773232861931,-1372.90078268,0.00015,7]
[408204966,1773232861953,-2254.20843464,0.00015,7]
[408204967,1773232945309,500.0,0.00047473,120]
[408204968,1773233012981,500.15,0.00047475,120]
[408204969,1773233243336,500.0,0.00047475,120]
[408204970,1773233345241,-2052.98,0.0001605,2]
[408204971,1773233345263,-167.51,0.00016193,2]
[408204972,1773233377383,100019.99999999,0.00047476,30]
[408204973,1773233389303,14733.76132366,0.00047476,60]
[408204974,1773233389583,14733.76132366,0.00047476,60]
[408204975,1773233390217,14733.76132366,0.00047476,60]
[408204976,1773233390476,14733.76132366,0.00047476,60]
[408204977,1773233390747,14733.76132366,0.00047476,60]
[408204978,1773233391016,14733.76132366,0.00047476,60]
[408204979,1773233391551,14733.76132366,0.00047476,60]
[408204980,1773233391816,14733.76132366,0.00047476,60]
[408204981,1773233392504,14733.76132366,0.00047476,60]
[408204982,1773233392823,14733.76132366,0.00047476,60]
[408204983,1773233393102,14733.76132366,0.00047476,60]
[408204984,1773233393390,14733.76132366,0.00047476,60]
[408204985,1773233393667,14733.76132366,0.00047476,60]
[408204986,1773233394147,14733.76132366,0.00047476,60]
[408204987,1773233394548,14733.76132366,0.00047476,60]
[408204988,1773233394808,14733.76132366,0.00047476,60]
[408204989,1773233395067,14733.76132366,0.00047476,60]
[408204990,1773233395342,14733.76132366,0.00047476,60]
[408204991,1773233395603,14733.76132366,0.00047476,60]
[408204992,1773233395868,14937.42546404,0.00047476,60]
[408204993,1773233402658,500.0,0.00047476,120]
[408205002,1773233422961,220.86,0.00015394,2]
[408205003,1773233431230,151.0,0.00047476,60]
[408205010,1773233432306,-344.959979,0.00016894,2]
[408205011,1773233432316,-35.040021,0.00016979,2]
[408205012,1773233432327,-732.5,0.00016979,2]
[408205013,1773233432341,-1732.459979,0.00016979,2]
[408205014,1773233432351,-167.51,0.00017543,2]
[408205015,1773233432360,-550.0,0.00017654,2]
[408205016,1773233432369,-1200.0,0.00017654,2]
[408205017,1773233432379,-600.0,0.00017655,2]
[408205018,1773233432388,-195.0,0.00017655,2]
[408205019,1773233432397,-2500.0,0.00017655,2]
[408205020,1773233432406,-217.46711665,0.00017655,2]
[408205021,1773233432415,-500.58140027,0.000177,2]
[408205022,1773233432425,-500.53878535,0.000177,2]
[408205023,1773233432435,-1173.89371336,0.000179,2]
[408205024,1773233432444,-293.47342834,0.000179,2]
[408205025,1773233432454,-293.47342833,0.000179,2]
[408205026,1773233432463,-293.47342833,0.000179,2]
[408205027,1773233432473,-293.47342833,0.000179,2]
[408205028,1773233432482,-1173.89371333,0.00017948,2]
[408205029,1773233432491,-171.99,0.00017975,2]
[408205030,1773233432500,-2000.0,0.00018167,2]
[408205031,1773233432510,-502.1202599,0.00018473,2]
[408205032,1773233432520,-500.0,0.00018473,2]
[408205033,1773233432531,-500.0,0.00018473,2]
[408205034,1773233432540,-500.53827816,0.00018473,2]
[408205035,1773233432549,-500.0,0.00018473,2]
[408205036,1773233432558,-87745.3,0.00018473,2]
[408205037,1773233432567,-500.0,0.00018473,2]
[408205038,1773233432576,-1173.89371333,0.00018541,2]
[408205039,1773233432585,-250.0,0.00018583,2]
[408205040,1773233432595,-1492.8715872,0.00018583,2]
[408205041,1773233432605,-4530.00217481,0.00018583,2]
[408205042,1773233432615,-685.0,0.00018749,2]
[408205043,1773233432624,-200.0,0.00018892,2]
[408205044,1773233432633,-167.51,0.00018892,2]
[408205045,1773233432643,-286.98,0.00019,2]
[408205046,1773233432657,-21937.79823114,0.00019,2]
[408205047,1773233432666,-1000.0,0.00019021,2]
[408205048,1773233432675,-1000.0,0.00019021,2]
[408205049,1773233432684,-1000.0,0.00019021,2]
[408205050,1773233432693,-500.0,0.00019234,2]
[408205051,1773233432703,-500.0,0.00019234,2]
[408205052,1773233432712,-500.0,0.00019234,2]
[408205053,1773233432722,-500.0,0.00019234,2]
[408205054,1773233432732,-500.0,0.00019234,2]
[408205055,1773233432741,-500.0,0.00019234,2]
[408205056,1773233432751,-500.0,0.00019234,2]
[408205057,1773233432760,-500.0,0.00019234,2]
[408205058,1773233432770,-500.0,0.00019234,2]
[408205059,1773233432780,-500.0,0.00019234,2]
[408205060,1773233432790,-500.0,0.00019234,2]
[408205061,1773233432800,-500.0,0.00019234,2]
[408205062,1773233432808,-500.0,0.00019234,2]
[408205063,1773233432817,-500.0,0.00019234,2]
[408205064,1773233432827,-500.0,0.00019234,2]
[408205065,1773233432835,-500.0,0.00019234,2]
[408205066,1773233432844,-500.0,0.00019234,2]
[408205067,1773233432854,-500.0,0.00019234,2]
[408205068,1773233432863,-500.0,0.00019234,2]
[408205069,1773233432872,-500.0,0.00019234,2]
[408205070,1773233432881,-500.0,0.00019234,2]
[408205071,1773233432890,-300.64,0.00019234,2]
[408205072,1773233432899,-500.0,0.00019234,2]
[408205073,1773233432908,-500.0,0.00019234,2]
[408205074,1773233432918,-368.77721727,0.00019234,2]
[408205075,1773233432929,-131.22278273,0.00019234,2]
[408205076,1773233432939,-2368.05,0.00019332,2]
[408205077,1773233432948,-231.0,0.00019365,2]
[408205078,1773233432957,-1355.159,0.0001939,2]
[408205079,1773233432966,-200.0,0.000194,7]
[408205080,1773233432975,-166.66,0.00019422,2]
[408205081,1773233432984,-1325.29,0.00019459,2]
[408205082,1773233432994,-20164.46588292,0.0001949,2]
[408205083,1773233433005,-1351.14592439,0.0001949,2]
[408205084,1773233433016,-1283.74605043,0.0001949,2]
[408205085,1773233433028,-1555.25933657,0.0001949,2]
[408205086,1773233433039,-419.3,0.0001949,2]
[408205091,1773233437891,-40722.97367406,0.0001949,2]
[408205092,1773233437900,-500.0,0.000195,7]
[408205093,1773233437910,-300.64,0.00019508,2]
[408205094,1773233437919,-7763.76948552,0.00019526,2]
[408205095,1773233437928,-233.46,0.00019558,2]
[408205096,1773233437938,-7763.76948546,0.00019568,2]
[408205097,1773233437947,-500.0,0.00019568,2]
[408205098,1773233437956,-292.31968154,0.00019599,2]
[408205099,1773233437966,-700.0,0.000196,7]
[408205100,1773233437975,-7763.76948546,0.00019609,2]
[408205101,1773233437985,-150.0,0.00019616,2]
[408205102,1773233437994,-150.0,0.00019616,2]
[408205103,1773233438003,-150.0,0.00019616,2]
[408205104,1773233438012,-500.0,0.00019616,2]
[408205105,1773233438022,-150.0,0.00019616,2]
[408205106,1773233438032,-500.0,0.00019616,2]
[408205107,1773233438041,-500.0,0.00019616,2]
[408205108,1773233438050,-150.0,0.00019616,2]
[408205109,1773233438060,-500.0,0.00019616,2]
[408205110,1773233438069,-150.0,0.00019616,2]
[408205111,1773233438078,-500.0,0.00019616,2]
[408205112,1773233438087,-150.0,0.00019616,2]
[408205113,1773233438098,-500.0,0.00019616,2]
[408205114,1773233438111,-500.0,0.00019616,2]
[408205115,1773233438120,-150.0,0.00019616,2]
[408205116,1773233438129,-296.0,0.00019616,2]
[408205117,1773233438140,-150.0,0.00019616,2]
[408205118,1773233438149,-150.0,0.00019616,2]
[408205119,1773233438158,-150.0,0.00019616,2]
[408205120,1773233438168,-500.0,0.00019616,2]
[408205122,1773233438179,-150.0,0.00019616,2]
[408205124,1773233438188,-150.0,0.00019616,2]
[408205126,1773233438198,-150.0,0.00019616,2]
[408205128,1773233438207,-500.0,0.00019616,2]
[408205130,1773233438217,-49678.7711,0.00019622,2]
[408205132,1773233438226,-213.00520374,0.00019626,2]
[408205134,1773233438235,-24311.8472,0.00019636,2]
[408205136,1773233438244,-1847.96,0.00019649,2]
[408205138,1773233438253,-7763.76948546,0.00019651,2]
[408205140,1773233438263,-172.95802059,0.00019666,2]
[408205142,1773233438272,-2500.0,0.00019667,2]
[408205144,1773233438283,-150.0,0.00019671,2]
[408205146,1773233438292,-150.0,0.00019671,2]
[408205148,1773233438301,-500.0,0.00019671,2]
[408205150,1773233438311,-150.0,0.00019671,2]
[408205152,1773233438320,-500.0,0.00019671,2]
[408205154,1773233438329,-150.0,0.00019671,2]
[408205156,1773233438338,-500.0,0.00019671,2]
[408205158,1773233438348,-500.0,0.00019671,2]